[Event "95th Caplin Hastings Congress"]
[Site "Hastings"]
[Date "2019.12.28"]
[Round "1.32"]
[White "Willson, Ollie"]
[Black "Garnett, John S"]
[Result "1/2-1/2"]
[ECO "D12"]
[WhiteElo "2082"]
[BlackElo "1865"]
[Annotator "NA"]
[PlyCount "104"]
[EventDate "2019.12.28"]
[EventType "swiss"]
[EventCountry "ENG"]
[SourceTitle "playchess.com"]
[Source "ChessBase"]
[SourceQuality "1"]
[TimeControl "40/6600+30:3000+30"]

1. d4 {[%emt 0:09:33]} d5 {[%emt 0:09:41]} 2. c4 {[%emt 0:00:06]} c6 {[%emt 0:00:07]} 3. Nf3 {[%emt 0:00:12]} Nf6 {[%emt 0:00:12]} 4. e3 {[%emt 0:00:13]} Bf5 {[%emt 0:00:30]} 5. Nc3 {[%emt 0:00:33]} e6 {[%emt 0:00:28]} 6. Be2 {[%emt 0:01:58]} Bd6 {[%emt 0:01:36]} 7. Qb3 {[%emt 0:06:18]} Qc7 {[%emt 0:02:21]} 8. Bd2 {[%emt 0:03:52]} O-O {[%emt 0:01:27]} 9. Rc1 {[%emt 0:03:08]} a6 {[%emt 0:01:28]} 10. c5 {[%emt 0:21:05]} Be7 {[%emt 0:01:06]} 11. O-O {[%emt 0:01:42]} Nbd7 {[%emt 0:01:27]} 12. Na4 {[%emt 0:10:14]} Ne4 {[%emt 0:06:56]} 13. Be1 {[%emt 0:00:34]} Rfe8 {[%emt 0:02:34]} 14. Nb6 {[%emt 0:05:21]} Nxb6 {[%emt 0:02:19]} 15. Ba5 {[%emt 0:00:07]} Rac8 {[%emt 0:02:22]} 16. Bxb6 {[%emt 0:00:26]} Qb8 {[%emt 0:01:09]} 17. Rfe1 {[%emt 0:07:07]} Bd8 {[%emt 0:01:54]} 18. Bxd8 {[%emt 0:12:32]} Rcxd8 {[%emt 0:00:21]} 19. Bd3 {[%emt 0:01:57]} Bg6 {[%emt 0:03:08]} 20. Qc2 {[%emt 0:05:01]} Nf6 {[%emt 0:03:56]} 21. b4 {[%emt 0:00:11]} Bxd3 {[%emt 0:01:30]} 22. Qxd3 {[%emt 0:00:06]} Qc7 {[%emt 0:01:49]} 23. a4 {[%emt 0:03:20]} h6 {[%emt 0:02:20]} 24. b5 {[%emt 0:00:31]} axb5 {[%emt 0:02:00]} 25. axb5 {[%emt 0:00:06]} Ra8 {[%emt 0:00:57]} 26. Ra1 {[%emt 0:01:14]} b6 {[%emt 0:04:35]} 27. Rac1 {[%emt 0:04:37]} cxb5 {[%emt 0:02:38]} 28. Qxb5 {[%emt 0:02:13]} bxc5 {[%emt 0:01:08]} 29. Rxc5 {[%emt 0:01:11]} Qb8 {[%emt 0:07:13]} 30. Ne5 {[%emt 0:05:21]} Qxb5 {[%emt 0:03:03]} 31. Rxb5 {[%emt 0:00:07]} Reb8 {[%emt 0:04:27]} 32. Rxb8+ {[%emt 0:00:37]} Rxb8 {[%emt 0:00:28]} 33. Rc1 {[%emt 0:03:16]} g6 {[%emt 0:03:14]} 34. g4 {[%emt 0:02:42]} Rb7 {[%emt 0:02:16]} 35. Kg2 {[%emt 0:03:25]} Kg7 {[%emt 0:02:42]} 36. h4 {[%emt 0:02:54]} g5 {[%emt 0:02:19]} 37. hxg5 {[%emt 0:01:46]} hxg5 {[%emt 0:00:07]} 38. Rc8 {[%emt 0:00:47]} Ne4 {[%emt 0:02:32]} 39. f3 {[%emt 0:01:27]} Nf6 {[%emt 0:04:25]} 40. Kg3 {[%emt 0:01:17]} Nd7 {[%emt 0:01:10]} 41. Nc6 {[%emt 0:11:34]} Nb6 {[%emt 0:02:41]} 42. Re8 {[%emt 0:03:26]} Nc4 {[%emt 0:01:47]} 43. f4 {[%emt 0:11:14]} Nxe3 {[%emt 0:05:20]} 44. fxg5 {[%emt 0:07:59]} Rb3 {[%emt 0:02:12]} 45. Rb8 {[%emt 0:10:54]} Rc3 {[%emt 0:02:46]} 46. Ne5 {[%emt 0:03:07]} Nf5+ {[%emt 0:05:01]} 47. Kf2 {[%emt 0:01:20]} Nd6 {[%emt 0:01:47]} 48. Nf3 {[%emt 0:02:08]} Rc2+ {[%emt 0:02:07]} 49. Kg3 {[%emt 0:00:43]} Ne4+ {[%emt 0:03:11]} 50. Kf4 {[%emt 0:00:06]} Rf2 {[%emt 0:01:15]} 51. Ke3 {[%emt 0:00:33]} Rg2 {[%emt 0:01:43]} 52. Kf4 {[%emt 0:00:07]} Rf2 {[%emt 0:05:04] Kxe4} 1/2-1/2

[Event "95th Caplin Hastings Congress"]
[Site "Hastings"]
[Date "2019.12.28"]
[Round "1.33"]
[White "Flynn, David"]
[Black "Pekin, Tolgay"]
[Result "1/2-1/2"]
[ECO "B22"]
[WhiteElo "1853"]
[BlackElo "2080"]
[Annotator "NA"]
[PlyCount "167"]
[EventDate "2019.12.28"]
[EventType "swiss"]
[EventCountry "ENG"]
[SourceTitle "playchess.com"]
[Source "ChessBase"]
[SourceQuality "1"]
[TimeControl "40/6600+30:3000+30"]

1. e4 {[%emt 0:09:32]} c5 {[%emt 0:09:34]} 2. c3 {[%emt 0:00:03]} Nf6 {[%emt 0:00:14]} 3. e5 {[%emt 0:00:03]} Nd5 {[%emt 0:00:05]} 4. Nf3 {[%emt 0:00:03]} e6 {[%emt 0:00:53]} 5. Bc4 {[%emt 0:00:29]} Nb6 {[%emt 0:01:40]} 6. Bb3 {[%emt 0:00:26]} c4 {[%emt 0:01:29]} 7. Bc2 {[%emt 0:00:08]} d6 {[%emt 0:06:39]} 8. exd6 {[%emt 0:00:44]} Bxd6 {[%emt 0:01:52]} 9. d4 {[%emt 0:04:59]} Qc7 {[%emt 0:12:42]} 10. b3 {[%emt 0:13:29]} Bd7 {[%emt 0:06:31]} 11. bxc4 {[%emt 0:14:06]} Nxc4 {[%emt 0:01:37]} 12. Qe2 {[%emt 0:16:40]} Nb6 {[%emt 0:15:30]} 13. O-O {[%emt 0:04:40]} Bc6 {[%emt 0:07:58]} 14. h3 {[%emt 0:03:28]} Bd5 {[%emt 0:02:15]} 15. Re1 {[%emt 0:05:35]} N8d7 {[%emt 0:02:00]} 16. Bb3 {[%emt 0:07:15]} O-O {[%emt 0:05:57]} 17. Bc2 {[%emt 0:08:55]} Rfe8 {[%emt 0:11:53]} 18. Qd3 {[%emt 0:03:32]} g6 {[%emt 0:07:41]} 19. Ba3 {[%emt 0:03:58]} Rac8 {[%emt 0:04:36]} 20. Bxd6 {[%emt 0:00:33]} Qxd6 {[%emt 0:00:08]} 21. Bb3 {[%emt 0:02:27]} Bc4 {[%emt 0:03:00]} 22. Bxc4 {[%emt 0:04:23]} Nxc4 {[%emt 0:00:06]} 23. Nbd2 {[%emt 0:00:29]} Nxd2 {[%emt 0:00:27]} 24. Nxd2 {[%emt 0:00:39]} Qa3 {[%emt 0:02:42]} 25. Nb3 {[%emt 0:03:22]} Nb6 {[%emt 0:02:13]} 26. Re5 {[%emt 0:02:03]} Qb2 {[%emt 0:03:26]} 27. Rc5 {[%emt 0:05:14]} Red8 {[%emt 0:03:47]} 28. Qb1 {[%emt 0:02:38]} Qxb1+ {[%emt 0:00:38]} 29. Rxb1 {[%emt 0:00:01]} Na4 {[%emt 0:00:09]} 30. Rxc8 {[%emt 0:00:38]} Rxc8 {[%emt 0:00:04]} 31. Nc5 {[%emt 0:00:11]} Nxc3 {[%emt 0:02:14]} 32. Rxb7 {[%emt 0:00:19]} Ne2+ {[%emt 0:00:08]} 33. Kf1 {[%emt 0:00:30]} Nxd4 {[%emt 0:00:07]} 34. Nb3 {[%emt 0:01:02]} Nc6 {[%emt 0:02:47]} 35. Ke2 {[%emt 0:00:37]} Rd8 {[%emt 0:00:27]} 36. Rc7 {[%emt 0:00:33]} Rd6 {[%emt 0:00:12]} 37. Ke3 {[%emt 0:00:34]} a5 {[%emt 0:00:21]} 38. Nc5 {[%emt 0:00:59]} Nb4 {[%emt 0:00:32]} 39. Ra7 {[%emt 0:01:12]} Nxa2 {[%emt 0:01:10]} 40. Rxa5 {[%emt 0:00:08]} Nc3 {[%emt 0:00:45]} 41. Ne4 {[%emt 0:50:37]} Nd1+ {[%emt 0:52:34]} 42. Ke2 {[%emt 0:01:09]} Rd8 {[%emt 0:00:39]} 43. Ra7 {[%emt 0:00:00]} h6 {[%emt 0:00:00]} 44. Rb7 {[%emt 0:00:00]} g5 {[%emt 0:00:00]} 45. Rb1 {[%emt 0:00:00]} Rd4 {[%emt 0:00:00]} 46. Rxd1 {[%emt 0:00:00]} Rxe4+ {[%emt 0:00:00]} 47. Kf3 {[%emt 0:02:33]} Ra4 {[%emt 0:00:00]} 48. g3 {[%emt 0:00:00]} Kg7 {[%emt 0:00:00]} 49. Rb1 {[%emt 0:00:00]} h5 {[%emt 0:00:00]} 50. Rb2 {[%emt 0:00:00]} h4 {[%emt 0:00:00]} 51. gxh4 {[%emt 0:00:00]} Rxh4 {[%emt 0:00:00]} 52. Kg3 {[%emt 0:00:00]} Rd4 {[%emt 0:00:00]} 53. Rb3 {[%emt 0:00:00]} Kg6 {[%emt 0:00:00]} 54. Ra3 {[%emt 0:00:00]} e5 {[%emt 0:00:00]} 55. f3 {[%emt 0:00:00]} Rd2 {[%emt 0:00:00]} 56. h4 {[%emt 0:00:00]} gxh4+ {[%emt 0:00:00]} 57. Kxh4 {[%emt 0:00:00]} Rg2 {[%emt 0:00:00]} 58. Ra4 {[%emt 0:00:00]} Kf5 {[%emt 0:00:23]} 59. Rb4 {[%emt 0:00:00]} Rg1 {[%emt 0:01:51]} 60. Ra4 {[%emt 0:00:00]} Ke6 {[%emt 0:03:16]} 61. Ra6+ {[%emt 0:00:13]} Kd5 {[%emt 0:01:37]} 62. Ra4 {[%emt 0:00:03]} f5 {[%emt 0:00:20]} 63. Kh3 {[%emt 0:04:50]} f4 {[%emt 0:01:23]} 64. Kh2 {[%emt 0:00:30]} Rg3 {[%emt 0:00:16]} 65. Ra5+ {[%emt 0:00:56]} Kd4 {[%emt 0:01:06]} 66. Ra3 {[%emt 0:02:57]} Rg8 {[%emt 0:01:18]} 67. Kh1 {[%emt 0:00:32]} Rc8 {[%emt 0:00:43]} 68. Kg2 {[%emt 0:00:16]} Rc2+ {[%emt 0:00:29]} 69. Kh3 {[%emt 0:01:53]} Rc3 {[%emt 0:00:34]} 70. Ra4+ {[%emt 0:00:07]} Ke3 {[%emt 0:00:18]} 71. Kg4 {[%emt 0:00:41]} Kf2 {[%emt 0:00:36]} 72. Ra2+ {[%emt 0:00:10]} Ke1 {[%emt 0:00:11]} 73. Ra1+ {[%emt 0:00:39]} Kd2 {[%emt 0:00:55]} 74. Ra5 {[%emt 0:01:09]} Re3 {[%emt 0:00:35]} 75. Ra2+ {[%emt 0:00:13]} Ke1 {[%emt 0:00:35]} 76. Ra1+ {[%emt 0:00:39]} Kf2 {[%emt 0:00:14]} 77. Ra2+ {[%emt 0:00:05]} Re2 {[%emt 0:00:16]} 78. Ra3 {[%emt 0:00:15]} Re3 {[%emt 0:01:14]} 79. Ra2+ {[%emt 0:00:07]} Ke1 {[%emt 0:00:26]} 80. Ra1+ {[%emt 0:00:05]} Kf2 {[%emt 0:00:36]} 81. Ra2+ {[%emt 0:00:06]} Re2 {[%emt 0:00:22]} 82. Ra3 {[%emt 0:00:07]} Rd2 {[%emt 0:00:23]} 83. Ra5 {[%emt 0:00:25]} Re2 {[%emt 0:00:45]} 84. Ra3 {[%emt 0:00:06]} 1/2-1/2

[Event "95th Caplin Hastings Congress"]
[Site "Hastings"]
[Date "2019.12.28"]
[Round "1.35"]
[White "Miller, George"]
[Black "Comellas Blanchart, Jordi"]
[Result "0-1"]
[ECO "B51"]
[WhiteElo "1845"]
[BlackElo "2064"]
[Annotator "NA"]
[PlyCount "52"]
[EventDate "2019.12.28"]
[EventType "swiss"]
[EventCountry "ENG"]
[SourceTitle "playchess.com"]
[Source "ChessBase"]
[SourceQuality "1"]
[TimeControl "40/6600+30:3000+30"]

1. e4 {[%emt 0:09:33]} c5 {[%emt 0:09:39]} 2. Nf3 {[%emt 0:00:09]} d6 {[%emt 0:00:07]} 3. Bb5+ {[%emt 0:00:11]} Nd7 {[%emt 0:00:19]} 4. O-O {[%emt 0:00:23]} a6 {[%emt 0:00:28]} 5. Bc4 {[%emt 0:00:50]} Ngf6 {[%emt 0:04:30]} 6. Re1 {[%emt 0:02:17]} e6 {[%emt 0:00:39]} 7. a4 {[%emt 0:12:30]} Be7 {[%emt 0:01:04]} 8. c3 {[%emt 0:11:48]} O-O {[%emt 0:06:20]} 9. d4 {[%emt 0:08:02]} cxd4 {[%emt 0:10:07]} 10. cxd4 {[%emt 0:02:08]} d5 {[%emt 0:03:50]} 11. exd5 {[%emt 0:01:25]} Nb6 {[%emt 0:00:58]} 12. Bb3 {[%emt 0:07:44]} Nbxd5 {[%emt 0:00:37]} 13. Nc3 {[%emt 0:01:57]} b6 {[%emt 0:02:29]} 14. Bg5 {[%emt 0:09:05]} Bb7 {[%emt 0:01:08]} 15. Qe2 {[%emt 0:07:19]} Qd6 {[%emt 0:20:04]} 16. Ne5 {[%emt 0:13:13]} Qb4 {[%emt 0:12:41]} 17. Bxd5 {[%emt 0:02:54]} Nxd5 {[%emt 0:01:20]} 18. Bxe7 {[%emt 0:00:26]} Qxe7 {[%emt 0:06:17]} 19. Nd3 {[%emt 0:01:21]} Rfd8 {[%emt 0:09:15]} 20. Qe5 {[%emt 0:01:34]} Rac8 {[%emt 0:05:35]} 21. Rac1 {[%emt 0:06:46]} Nb4 {[%emt 0:08:13]} 22. Nxb4 {[%emt 0:09:14]} Qxb4 {[%emt 0:00:08]} 23. d5 {[%emt 0:01:54]} exd5 {[%emt 0:03:20]} 24. Nxd5 {[%emt 0:00:29]} Bxd5 {[%emt 0:00:34]} 25. Rxc8 {[%emt 0:00:56]} Rxc8 {[%emt 0:00:14]} 26. Rd1 {[%emt 0:02:51]} Be6 {[%emt 0:01:04]} 0-1

[Event "95th Caplin Hastings Congress"]
[Site "Hastings"]
[Date "2019.12.28"]
[Round "1.36"]
[White "Balaji, Aaravamudhan"]
[Black "Wilson, Matthew R"]
[Result "1-0"]
[ECO "D36"]
[WhiteElo "2050"]
[BlackElo "1837"]
[Annotator "NA"]
[PlyCount "72"]
[EventDate "2019.12.28"]
[EventType "swiss"]
[EventCountry "ENG"]
[SourceTitle "playchess.com"]
[Source "ChessBase"]
[SourceQuality "1"]
[TimeControl "40/6600+30:3000+30"]

1. d4 {[%emt 0:09:32]} d5 {[%emt 0:09:36]} 2. c4 {[%emt 0:00:04]} e6 {[%emt 0:00:15]} 3. Nc3 {[%emt 0:00:09]} Nf6 {[%emt 0:00:11]} 4. cxd5 {[%emt 0:00:06]} exd5 {[%emt 0:00:09]} 5. Bg5 {[%emt 0:00:05]} Be7 {[%emt 0:00:54]} 6. e3 {[%emt 0:00:18]} c6 {[%emt 0:00:18]} 7. Qc2 {[%emt 0:00:15]} h6 {[%emt 0:01:34]} 8. Bh4 {[%emt 0:00:32]} Nbd7 {[%emt 0:00:45]} 9. Bd3 {[%emt 0:00:19]} Nh5 {[%emt 0:00:37]} 10. Bxe7 {[%emt 0:00:43]} Qxe7 {[%emt 0:00:08]} 11. O-O-O {[%emt 0:00:10]} Nb6 {[%emt 0:01:52]} 12. h3 {[%emt 0:00:20]} Be6 {[%emt 0:03:05]} 13. g4 {[%emt 0:02:59]} Nf6 {[%emt 0:00:28]} 14. f4 {[%emt 0:04:24]} O-O-O {[%emt 0:05:41]} 15. Kb1 {[%emt 0:01:32]} Kb8 {[%emt 0:00:39]} 16. Nf3 {[%emt 0:02:59]} Bc8 {[%emt 0:12:21]} 17. Rhe1 {[%emt 0:10:31]} c5 {[%emt 0:13:16]} 18. dxc5 {[%emt 0:21:36]} Qxc5 {[%emt 0:04:46]} 19. Nb5 {[%emt 0:01:53]} Qxc2+ {[%emt 0:09:05]} 20. Kxc2 {[%emt 0:04:08]} Bd7 {[%emt 0:07:33]} 21. Nbd4 {[%emt 0:08:23]} Ne4 {[%emt 0:03:47]} 22. Bxe4 {[%emt 0:04:32]} dxe4 {[%emt 0:00:20]} 23. Ne5 {[%emt 0:01:01]} Rhf8 {[%emt 0:04:18]} 24. Nb3 {[%emt 0:07:12]} Rc8+ {[%emt 0:16:39]} 25. Kb1 {[%emt 0:00:49]} Ba4 {[%emt 0:07:30]} 26. Rd4 {[%emt 0:01:47]} Bxb3 {[%emt 0:02:31]} 27. axb3 {[%emt 0:00:58]} f6 {[%emt 0:00:09]} 28. Ng6 {[%emt 0:03:26]} Rfe8 {[%emt 0:02:18]} 29. f5 {[%emt 0:02:03]} Rcd8 {[%emt 0:04:31]} 30. Red1 {[%emt 0:01:51]} Rxd4 {[%emt 0:02:27]} 31. Rxd4 {[%emt 0:00:04]} Re5 {[%emt 0:03:11]} 32. Nxe5 {[%emt 0:04:39]} fxe5 {[%emt 0:00:04]} 33. Rd6 {[%emt 0:00:59]} Kc7 {[%emt 0:00:34]} 34. Re6 {[%emt 0:01:01]} Nd7 {[%emt 0:00:21]} 35. Re7 {[%emt 0:00:16]} Kc6 {[%emt 0:01:43]} 36. Rxg7 {[%emt 0:00:11]} Nc5 {[%emt 0:00:13]} 1-0

[Event "95th Caplin Hastings Congress"]
[Site "Hastings"]
[Date "2019.12.28"]
[Round "1.37"]
[White "Gisbert Mir, Alejandro"]
[Black "Flear, Christine"]
[Result "0-1"]
[ECO "E46"]
[WhiteElo "1835"]
[BlackElo "2035"]
[Annotator "NA"]
[PlyCount "48"]
[EventDate "2019.12.28"]
[EventType "swiss"]
[EventCountry "ENG"]
[SourceTitle "playchess.com"]
[Source "ChessBase"]
[SourceQuality "1"]
[TimeControl "40/6600+30:3000+30"]

1. d4 {[%emt 0:09:42]} Nf6 {[%emt 0:09:44]} 2. c4 {[%emt 0:00:06]} e6 {[%emt 0:00:29]} 3. Nc3 {[%emt 0:00:07]} Bb4 {[%emt 0:00:34]} 4. e3 {[%emt 0:00:17]} O-O {[%emt 0:00:19]} 5. Nge2 {[%emt 0:00:13]} Re8 {[%emt 0:00:54]} 6. a3 {[%emt 0:04:26]} Bf8 {[%emt 0:00:39]} 7. g3 {[%emt 0:04:02]} d6 {[%emt 0:05:36]} 8. Bg2 {[%emt 0:02:04]} Nbd7 {[%emt 0:00:48]} 9. O-O {[%emt 0:02:12]} e5 {[%emt 0:03:19]} 10. dxe5 {[%emt 0:12:06]} dxe5 {[%emt 0:05:05]} 11. Qc2 {[%emt 0:06:08]} a5 {[%emt 0:08:24]} 12. b3 {[%emt 0:05:52]} c6 {[%emt 0:01:40]} 13. Bb2 {[%emt 0:00:21]} Qc7 {[%emt 0:01:42]} 14. Rad1 {[%emt 0:03:46]} Nc5 {[%emt 0:14:02]} 15. b4 {[%emt 0:03:29]} axb4 {[%emt 0:01:06]} 16. axb4 {[%emt 0:00:02]} Na6 {[%emt 0:00:23]} 17. b5 {[%emt 0:05:25]} Nc5 {[%emt 0:00:16]} 18. Nc1 {[%emt 0:12:23]} Be6 {[%emt 0:02:39]} 19. bxc6 {[%emt 0:01:11]} bxc6 {[%emt 0:00:53]} 20. Ne4 {[%emt 0:02:35]} Nfxe4 {[%emt 0:10:12]} 21. Bxe4 {[%emt 0:00:03]} Nxe4 {[%emt 0:00:19]} 22. Qxe4 {[%emt 0:00:02]} Bh3 {[%emt 0:01:26]} 23. Rfe1 {[%emt 0:02:14]} Bb4 {[%emt 0:10:08]} 24. Re2 {[%emt 0:03:36]} f5 {[%emt 0:00:55]} 0-1

[Event "95th Caplin Hastings Congress"]
[Site "Hastings"]
[Date "2019.12.28"]
[Round "1.38"]
[White "Rice, Chris B"]
[Black "Bryant, Marc A"]
[Result "1-0"]
[ECO "A30"]
[WhiteElo "2027"]
[BlackElo "1823"]
[Annotator "NA"]
[PlyCount "57"]
[EventDate "2019.12.28"]
[EventType "swiss"]
[EventCountry "ENG"]
[SourceTitle "playchess.com"]
[Source "ChessBase"]
[SourceQuality "1"]
[TimeControl "40/6600+30:3000+30"]

1. c4 {[%emt 0:10:59]} c5 {[%emt 0:10:32]} 2. g3 {[%emt 0:00:31]} Nc6 {[%emt 0:00:17]} 3. Bg2 {[%emt 0:00:16]} d6 {[%emt 0:00:11]} 4. Nc3 {[%emt 0:01:05]} Bf5 {[%emt 0:00:30]} 5. a3 {[%emt 0:08:40]} Nf6 {[%emt 0:03:17]} 6. d3 {[%emt 0:03:29]} h6 {[%emt 0:11:23]} 7. Rb1 {[%emt 0:01:00]} Qd7 {[%emt 0:12:16]} 8. Bd2 {[%emt 0:06:27]} Ne5 {[%emt 0:01:52]} 9. Bf4 {[%emt 0:24:11]} Nxc4 {[%emt 0:13:51]} 10. dxc4 {[%emt 0:06:21]} Bxb1 {[%emt 0:00:09]} 11. Qxb1 {[%emt 0:00:12]} g5 {[%emt 0:00:42]} 12. Bd2 {[%emt 0:01:56]} Bg7 {[%emt 0:00:31]} 13. Nf3 {[%emt 0:01:17]} Rd8 {[%emt 0:03:22]} 14. O-O {[%emt 0:02:24]} a6 {[%emt 0:03:57]} 15. b4 {[%emt 0:17:12]} b6 {[%emt 0:05:07]} 16. b5 {[%emt 0:01:12]} axb5 {[%emt 0:01:35]} 17. Nxb5 {[%emt 0:00:52]} g4 {[%emt 0:04:28]} 18. Nh4 {[%emt 0:01:20]} e6 {[%emt 0:00:52]} 19. Bf4 {[%emt 0:03:28]} e5 {[%emt 0:03:41]} 20. Nf5 {[%emt 0:02:48]} exf4 {[%emt 0:05:26]} 21. Nxg7+ {[%emt 0:00:53]} Kf8 {[%emt 0:00:34]} 22. Nf5 {[%emt 0:00:39]} fxg3 {[%emt 0:00:57]} 23. fxg3 {[%emt 0:03:39]} Qe6 {[%emt 0:01:49]} 24. Qd3 {[%emt 0:04:01]} Ne8 {[%emt 0:06:55]} 25. Bd5 {[%emt 0:02:00]} Qe5 {[%emt 0:05:27]} 26. Nh4 {[%emt 0:00:44]} Nf6 {[%emt 0:01:30]} 27. Ng6+ {[%emt 0:01:34]} fxg6 {[%emt 0:02:06]} 28. Qxg6 {[%emt 0:00:05]} Ke7 {[%emt 0:11:29]} 29. Qf7# {[%emt 0:00:06]} 1-0

[Event "95th Caplin Hastings Congress"]
[Site "Hastings"]
[Date "2019.12.28"]
[Round "1.39"]
[White "Drastik, Penelope"]
[Black "Anuprita, Patil"]
[Result "0-1"]
[ECO "D55"]
[WhiteElo "1821"]
[BlackElo "2025"]
[Annotator "NA"]
[PlyCount "96"]
[EventDate "2019.12.28"]
[EventType "swiss"]
[EventCountry "ENG"]
[SourceTitle "playchess.com"]
[Source "ChessBase"]
[SourceQuality "1"]
[TimeControl "40/6600+30:3000+30"]

1. d4 {[%emt 0:09:31]} d5 {[%emt 0:13:04]} 2. c4 {[%emt 0:00:03]} e6 {[%emt 0:00:04]} 3. Nc3 {[%emt 0:00:03]} Be7 {[%emt 0:00:07]} 4. Nf3 {[%emt 0:00:04]} Nf6 {[%emt 0:00:05]} 5. Bg5 {[%emt 0:00:03]} h6 {[%emt 0:00:52]} 6. Bxf6 {[%emt 0:00:04]} Bxf6 {[%emt 0:00:05]} 7. e3 {[%emt 0:00:03]} O-O {[%emt 0:00:16]} 8. Qd2 {[%emt 0:00:05]} dxc4 {[%emt 0:01:43]} 9. Bxc4 {[%emt 0:00:07]} c5 {[%emt 0:00:09]} 10. Ne4 {[%emt 0:16:20]} cxd4 {[%emt 0:06:55]} 11. Nxf6+ {[%emt 0:00:07]} Qxf6 {[%emt 0:00:02]} 12. Qxd4 {[%emt 0:00:15]} Qxd4 {[%emt 0:03:33]} 13. Nxd4 {[%emt 0:00:06]} a6 {[%emt 0:00:13]} 14. a4 {[%emt 0:07:10]} Bd7 {[%emt 0:04:36]} 15. Ke2 {[%emt 0:02:42]} Nc6 {[%emt 0:00:59]} 16. Rhd1 {[%emt 0:00:12]} Rfd8 {[%emt 0:00:59]} 17. Nxc6 {[%emt 0:08:43]} Bxc6 {[%emt 0:00:06]} 18. Rxd8+ {[%emt 0:00:08]} Rxd8 {[%emt 0:00:02]} 19. g3 {[%emt 0:00:10]} Kf8 {[%emt 0:01:14]} 20. a5 {[%emt 0:02:43]} Ke7 {[%emt 0:00:18]} 21. Rc1 {[%emt 0:03:08]} Rc8 {[%emt 0:06:02]} 22. Bd3 {[%emt 0:05:36]} Kd6 {[%emt 0:04:54]} 23. Kd2 {[%emt 0:02:38]} Rd8 {[%emt 0:00:41]} 24. Kc3 {[%emt 0:05:50]} Kc7 {[%emt 0:06:48]} 25. f4 {[%emt 0:02:19]} Rd5 {[%emt 0:11:30]} 26. b4 {[%emt 0:00:23]} Bb5 {[%emt 0:02:41]} 27. Be4 {[%emt 0:02:16]} Rd7 {[%emt 0:01:54]} 28. Rc2 {[%emt 0:02:34]} Kb8 {[%emt 0:12:54]} 29. Rd2 {[%emt 0:04:37]} Rc7+ {[%emt 0:02:46]} 30. Kb3 {[%emt 0:00:09]} Bc4+ {[%emt 0:03:30]} 31. Kb2 {[%emt 0:00:34]} Bb5 {[%emt 0:03:35]} 32. Kb3 {[%emt 0:05:09]} Rc1 {[%emt 0:07:41]} 33. Bg2 {[%emt 0:02:28]} Rb1+ {[%emt 0:02:35]} 34. Kc3 {[%emt 0:01:37]} Kc7 {[%emt 0:01:54]} 35. Bf3 {[%emt 0:01:04]} Re1 {[%emt 0:02:07]} 36. Kd4 {[%emt 0:00:40]} Rc1 {[%emt 0:01:35]} 37. Be2 {[%emt 0:00:53]} Bxe2 {[%emt 0:00:14]} 38. Rxe2 {[%emt 0:00:02]} Kc6 {[%emt 0:00:17]} 39. Ke5 {[%emt 0:01:03]} Rc4 {[%emt 0:00:28]} 40. Rb2 {[%emt 0:00:33]} Kb5 {[%emt 0:08:41]} 41. Kd6 {[%emt 0:50:08]} Rxb4 {[%emt 0:51:03]} 42. Rxb4+ {[%emt 0:00:04]} Kxb4 {[%emt 0:00:02]} 43. Ke7 {[%emt 0:00:03]} Kxa5 {[%emt 0:00:12]} 44. Kxf7 {[%emt 0:00:04]} b5 {[%emt 0:00:03]} 45. Kxe6 {[%emt 0:00:32]} b4 {[%emt 0:00:03]} 46. e4 {[%emt 0:00:02]} b3 {[%emt 0:00:03]} 47. f5 {[%emt 0:00:03]} b2 {[%emt 0:00:04]} 48. e5 {[%emt 0:00:01]} b1=Q {[%emt 0:00:06]} 0-1

[Event "95th Caplin Hastings Congress"]
[Site "Hastings"]
[Date "2019.12.28"]
[Round "1.40"]
[White "Norinkeviciute, Rasa"]
[Black "Salmons, Calum"]
[Result "1-0"]
[ECO "B24"]
[WhiteElo "2018"]
[BlackElo "1796"]
[Annotator "NA"]
[PlyCount "83"]
[EventDate "2019.12.28"]
[EventType "swiss"]
[EventCountry "ENG"]
[SourceTitle "playchess.com"]
[Source "ChessBase"]
[SourceQuality "1"]
[TimeControl "40/6600+30:3000+30"]

1. e4 {[%emt 0:09:34]} c5 {[%emt 0:10:06]} 2. Nc3 {[%emt 0:00:19]} Nc6 {[%emt 0:00:12]} 3. g3 {[%emt 0:00:17]} g6 {[%emt 0:00:34]} 4. Bg2 {[%emt 0:00:05]} Bg7 {[%emt 0:00:05]} 5. Nge2 {[%emt 0:01:06]} e6 {[%emt 0:02:23]} 6. d3 {[%emt 0:00:41]} Nge7 {[%emt 0:00:20]} 7. Be3 {[%emt 0:00:31]} Nd4 {[%emt 0:03:01]} 8. O-O {[%emt 0:02:49]} O-O {[%emt 0:03:34]} 9. Rb1 {[%emt 0:03:00]} Nec6 {[%emt 0:06:03]} 10. a3 {[%emt 0:01:49]} a5 {[%emt 0:08:37]} 11. Qd2 {[%emt 0:03:01]} Rb8 {[%emt 0:05:52]} 12. f4 {[%emt 0:20:32]} b5 {[%emt 0:02:33]} 13. e5 {[%emt 0:00:45]} f5 {[%emt 0:11:28]} 14. exf6 {[%emt 0:01:55]} Qxf6 {[%emt 0:03:30]} 15. Ne4 {[%emt 0:02:59]} Qe7 {[%emt 0:00:25]} 16. c3 {[%emt 0:04:35]} d5 {[%emt 0:13:22]} 17. cxd4 {[%emt 0:09:23]} cxd4 {[%emt 0:00:54]} 18. Bf2 {[%emt 0:07:55]} dxe4 {[%emt 0:02:56]} 19. Bxe4 {[%emt 0:06:13]} Qd6 {[%emt 0:03:37]} 20. Rbc1 {[%emt 0:09:00]} Bb7 {[%emt 0:03:05]} 21. Qc2 {[%emt 0:06:36]} Rfd8 {[%emt 0:20:26]} 22. Qc5 {[%emt 0:02:55]} Qxc5 {[%emt 0:00:56]} 23. Rxc5 {[%emt 0:06:23]} Ne7 {[%emt 0:00:32]} 24. Bxb7 {[%emt 0:00:52]} Rxb7 {[%emt 0:00:16]} 25. Rfc1 {[%emt 0:00:59]} Nf5 {[%emt 0:05:02]} 26. Kg2 {[%emt 0:02:03]} h5 {[%emt 0:01:07]} 27. Kf3 {[%emt 0:00:30]} Ne3 {[%emt 0:02:45]} 28. b3 {[%emt 0:05:10]} a4 {[%emt 0:01:59]} 29. b4 {[%emt 0:01:22]} Rdd7 {[%emt 0:01:18]} 30. Ke4 {[%emt 0:01:53]} Nf5 {[%emt 0:04:18]} 31. h3 {[%emt 0:01:10]} Nd6+ {[%emt 0:01:51]} 32. Kf3 {[%emt 0:00:13]} Nf7 {[%emt 0:00:10]} 33. Rc8+ {[%emt 0:02:52]} Kh7 {[%emt 0:01:14]} 34. R1c6 {[%emt 0:02:36]} e5 {[%emt 0:00:46]} 35. Re8 {[%emt 0:01:39]} exf4 {[%emt 0:00:51]} 36. gxf4 {[%emt 0:00:08]} g5 {[%emt 0:01:09]} 37. Rc5 {[%emt 0:02:07]} gxf4 {[%emt 0:00:34]} 38. Rxh5+ {[%emt 0:01:04]} Bh6 {[%emt 0:00:01]} 39. Bxd4 {[%emt 0:01:38]} Ng5+ {[%emt 0:00:45]} 40. Kg4 {[%emt 0:00:31]} Rxd4 {[%emt 0:00:49]} 41. Nxd4 {[%emt 0:00:50]} Rg7 {[%emt 0:07:54]} 42. Rxh6+ {[%emt 0:02:09]} 1-0